bitfinex/quotes_ETHUSD_20250222
["timestamp","ask_amount","ask_price","bid_price","bid_amount"]
[1740264994339,4.38291,2772.5,2772.0,5.645]
[1740264994549,0.06063959,2772.1,2772.0,6.4374]
[1740264994790,0.776,2772.5,2772.0,6.4374]
[1740264995141,0.06095948,2772.4,2772.0,6.4374]
[1740264996185,0.776,2772.5,2772.0,10.04481]
[1740264996540,0.06095948,2772.4,2772.0,10.04481]
[1740264996736,0.776,2772.3,2772.0,5.39]
[1740264996977,4.38323,2772.3,2772.0,5.39]
[1740264997136,4.38323,2772.3,2771.5,5.39]
[1740264997137,4.38402,2771.6,2771.5,5.39]
[1740264997341,4.38402,2771.6,2771.2,5.645]
[1740264997587,4.44402709,2771.6,2771.2,5.645]
[1740264998381,0.83600709,2771.6,2771.2,5.645]
[1740264999086,4.44402709,2771.6,2771.2,5.645]
[1740265000153,4.44402709,2771.6,2771.2,5.39]
[1740265000356,4.44402709,2771.6,2771.2,5.645]
[1740265000677,3.60815,2771.5,2771.2,5.645]
[1740265001038,0.05908304,2771.4,2771.2,5.645]
[1740265001867,0.776,2771.6,2771.2,5.645]
[1740265002074,0.05897633,2771.3,2771.2,5.645]
[1740265002269,0.05897633,2771.3,2771.1,3.0]
[1740265002471,0.05897633,2771.3,2771.1,3.255]
[1740265002650,7.99224,2771.6,2771.1,3.255]
[1740265002975,0.05918975,2771.5,2771.1,3.255]
[1740265003574,0.05918975,2771.5,2771.1,0.255]
[1740265008690,4.38411,2771.6,2771.1,0.255]
[1740265008845,0.05917221,2771.5,2771.1,0.255]
[1740265009049,0.05917221,2771.5,2771.1,2.23106478]
[1740265009258,0.05917221,2771.5,2771.1,5.83972478]
[1740265009485,0.776,2771.6,2771.1,5.58465478]
[1740265009785,0.776,2771.6,2771.2,0.255]
[1740265010163,0.05918975,2771.5,2771.2,0.255]
[1740265010569,0.776,2771.6,2771.2,0.255]
[1740265010755,0.05907718,2771.4,2771.2,0.255]
[1740265010956,0.776,2771.6,2771.2,0.255]
[1740265011196,0.05897047,2771.3,2771.2,0.255]
[1740265011368,0.776,2771.6,2771.2,0.255]
[1740265011568,0.05897047,2771.3,2771.2,0.255]
[1740265011772,4.42789,2771.8,2771.3,0.8112]
[1740265011970,1.62364,2771.8,2771.3,4.41953]
[1740265012381,0.05939728,2771.7,2771.3,0.8112]
[1740265012702,1.62364,2771.8,2771.3,0.8112]
[1740265012912,0.05939728,2771.7,2771.3,0.8112]
[1740265013097,1.62364,2771.8,2771.3,0.8112]
[1740265013266,0.05939728,2771.7,2771.3,0.8112]
[1740265013467,1.62364,2771.8,2771.3,0.8112]
[1740265013710,0.05939728,2771.7,2771.3,0.8112]
[1740265013910,1.62364,2771.8,2771.3,0.8112]
[1740265014213,0.05939728,2771.7,2771.3,0.8112]
[1740265014510,10.47272045,2772.4,2771.7,0.8083]
[1740265014511,0.8071,2772.3,2771.7,0.8083]
[1740265014664,0.05996565,2772.2,2771.7,6.1983]
[1740265015706,0.05996565,2772.2,2771.7,9.80618]
[1740265016069,0.05996565,2772.2,2772.1,6.04138045]
[1740265016322,0.8071,2773.2,2772.1,5.43071045]
[1740265016463,0.8071,2773.2,2772.8,3.60634]
[1740265016670,0.04947143,2773.1,2772.9,0.255]
[1740265016896,0.8071,2773.7,2773.0,3.6062]
[1740265017214,0.05000423,2773.6,2773.0,3.6062]
[1740265017506,0.05000423,2773.6,2773.0,8.99616]
[1740265017714,0.05000423,2773.6,2773.1,1.44831904]
[1740265019616,0.05000423,2773.6,2773.0,8.99616]
[1740265019772,0.05000423,2773.6,2773.0,9.72642826]
[1740265020776,0.05000423,2773.6,2773.1,0.27184391]
[1740265021121,3.60607,2773.1,2773.0,5.39]
[1740265021325,4.46165139,2773.1,2773.0,5.39]
[1740265021982,4.90781653,2773.1,2773.0,5.39]
[1740265023117,3.6062,2773.0,2772.9,0.255]
[1740265023321,3.6545748,2773.0,2772.9,0.255]
[1740265026593,3.6545748,2773.0,2772.9,0.72657812]
[1740265028742,3.60698,2772.4,2772.3,7.37]
[1740265028938,3.6544629,2772.4,2772.3,7.37]
[1740265029498,0.0474829,2772.4,2772.1,0.255]
[1740265029701,3.60724,2772.2,2772.1,0.255]
[1740265029929,3.65444533,2772.2,2772.1,0.255]
[1740265030129,4.38060186,2772.2,2772.1,0.255]
[1740265034550,3.65444533,2772.2,2772.1,0.255]
[1740265044864,4.40734533,2772.2,2772.1,0.255]
[1740265047385,3.60766,2771.9,2771.5,3.255]
[1740265047716,0.04404279,2771.8,2771.5,3.255]
[1740265048223,0.04404279,2771.8,2771.5,3.0]
[1740265048424,0.04404279,2771.8,2771.6,0.255]
[1740265053905,0.04404279,2771.8,2771.4,11.17905767]
[1740265054100,0.04404279,2771.8,2771.5,0.255]
[1740265056834,0.8198,2771.7,2771.4,10.42835767]
[1740265057034,0.8198,2771.7,2771.5,0.255]
[1740265057193,0.8198,2771.7,2771.4,10.68335767]
[1740265057390,0.0435795,2771.6,2771.4,10.68335767]
[1740265057933,0.04347285,2771.5,2771.4,10.68335767]
[1740265058134,3.60783,2771.8,2771.4,10.68335767]
[1740265058433,0.04368615,2771.7,2771.4,10.68335767]
[1740265058833,3.60783,2771.8,2771.4,10.68335767]
[1740265059040,0.0435795,2771.6,2771.4,10.68335767]
[1740265059235,3.60783,2771.8,2771.4,10.68335767]
[1740265059407,0.04347285,2771.5,2771.4,10.68335767]
[1740265059601,3.60783,2771.8,2771.4,10.68335767]
[1740265059800,0.04347285,2771.5,2771.4,10.68335767]
[1740265060006,4.42746,2771.9,2771.4,11.98709165]
[1740265060208,0.0434423,2771.5,2771.4,10.68335767]
[1740265060407,8.03519,2771.9,2771.4,10.68335767]
[1740265060600,0.0434423,2771.5,2771.4,10.68335767]
[1740265060808,4.42746,2771.9,2771.4,10.68335767]
[1740265061008,0.0434423,2771.5,2771.4,10.68335767]
[1740265061222,8.03517,2771.9,2771.4,12.34794265]
[1740265061563,4.42746,2771.9,2771.4,10.68335767]
[1740265061737,0.04376225,2771.8,2771.4,10.68335767]
[1740265062821,0.04376225,2771.8,2771.4,10.41277083]
[1740265067271,0.04376225,2771.8,2771.4,10.15777083]
[1740265067471,0.04376225,2771.8,2771.4,10.41277083]
[1740265068559,0.04376225,2771.8,2771.5,1.62663715]
[1740265068743,0.04376225,2771.8,2771.5,2.45493715]
[1740265073880,0.04376225,2771.8,2771.5,3.81444244]
[1740265074665,8.00945,2772.1,2771.5,3.81444244]
[1740265074868,0.04355036,2771.7,2771.5,3.81444244]
[1740265075065,8.00945,2772.1,2771.5,3.81444244]
[1740265075278,0.04344371,2771.6,2771.5,2.70993715]
[1740265075446,8.00945,2772.1,2771.5,2.70993715]
[1740265075447,4.40197,2772.1,2771.5,2.70993715]
[1740265075651,0.04341415,2771.6,2771.5,2.70993715]
[1740265075866,8.00942,2772.1,2771.5,2.70993715]
[1740265076068,0.04344371,2771.6,2771.5,2.70993715]
[1740265076376,0.04344371,2771.6,2771.5,4.43026144]
[1740265076603,3.60751,2772.0,2771.5,4.43026144]
[1740265076881,0.04341415,2771.6,2771.5,2.70993715]
[1740265077078,3.60751,2772.0,2771.5,2.70993715]
[1740265077485,0.04373408,2771.9,2771.5,2.70993715]
[1740265079856,3.6079,2771.7,2771.5,2.70993715]
[1740265080042,3.60808,2771.6,2771.4,10.41277083]
[1740265080244,0.0425015,2771.6,2771.4,10.41277083]
[1740265082656,0.0425015,2771.6,2771.4,4.76777083]
[1740265082861,3.6505415,2771.6,2771.4,5.02277083]
[1740265083077,0.0425015,2771.6,2771.4,5.02277083]
[1740265084001,3.6505415,2771.6,2771.4,5.02277083]
[1740265084299,0.0425015,2771.6,2771.4,5.02277083]
[1740265085090,0.8136,2771.7,2771.4,5.02277083]
[1740265085274,0.04248452,2771.5,2771.4,5.02277083]
[1740265085485,0.8136,2771.7,2771.4,5.02277083]
[1740265085671,0.04248452,2771.5,2771.4,5.02277083]
[1740265085871,0.8136,2771.7,2771.4,5.02277083]
[1740265086066,0.04248452,2771.5,2771.4,5.02277083]
[1740265086293,0.8136,2771.7,2771.4,5.02277083]
[1740265086601,0.04259117,2771.6,2771.4,5.02277083]
[1740265090205,0.8136,2771.7,2771.4,5.02277083]
[1740265090359,0.04116526,2771.6,2771.4,5.02277083]
[1740265094104,4.42155,2771.7,2771.4,5.02277083]
[1740265094485,0.04116526,2771.6,2771.4,5.02277083]
[1740265096973,0.04116526,2771.6,2771.4,5.77427083]
[1740265097179,4.36256,2772.1,2771.5,1.62663715]
[1740265097381,0.04151016,2772.0,2771.5,1.62663715]
[1740265097801,0.04151016,2772.0,2771.7,1.62663715]
[1740265101535,0.04151016,2772.0,2771.7,1.88163715]
[1740265108163,0.04151016,2772.0,2771.7,0.255]
[1740265114774,3.64901016,2772.0,2771.7,0.255]
[1740265114957,4.45014618,2772.0,2771.7,0.255]
[1740265119198,0.84264618,2772.0,2771.7,0.255]
[1740265119477,0.04151016,2772.0,2771.7,0.255]
[1740265129385,3.64904016,2772.0,2771.7,0.255]
[1740265132883,0.04151016,2772.0,2771.7,0.255]
[1740265133104,3.64902016,2772.0,2771.7,0.255]
[1740265156657,3.64902016,2772.0,2771.7,1.0475]
[1740265160316,4.45016618,2772.0,2771.7,1.0475]
[1740265160519,4.45016618,2772.0,2771.7,0.255]
[1740265162258,8.05775618,2772.0,2771.7,0.255]
[1740265162459,4.45016618,2772.0,2771.7,0.255]
[1740265162863,3.60763,2771.9,2771.7,0.255]
[1740265163276,0.03740986,2771.8,2771.7,0.255]
[1740265164179,3.60763,2771.9,2771.7,0.255]
[1740265164388,0.0373803,2771.8,2771.7,0.255]
[1740265170857,0.0373803,2771.8,2771.5,1.0314]
[1740265172582,0.0373803,2771.8,2771.5,0.7764]
[1740265172790,0.0373803,2771.8,2771.5,1.0314]
[1740265172953,0.0373803,2771.8,2771.5,0.7764]
[1740265173294,0.0373803,2771.8,2771.5,1.0314]
[1740265173478,0.0373803,2771.8,2771.5,0.7764]
[1740265173674,0.0373803,2771.8,2771.5,1.0314]
[1740265174183,0.0373803,2771.8,2771.5,0.7764]
[1740265174421,0.0373803,2771.8,2771.5,1.0314]
[1740265174796,0.0373803,2771.8,2771.5,0.7764]
[1740265175120,0.0373803,2771.8,2771.5,1.0314]
[1740265175815,3.60751,2772.0,2771.5,1.0314]
[1740265176023,0.03583317,2771.7,2771.5,1.0314]
[1740265176221,3.60751,2772.0,2771.5,1.0314]
[1740265176821,0.03604653,2771.9,2771.5,1.0314]
[1740265184160,3.60751,2772.0,2771.5,1.0314]
[1740265184543,0.7551,2772.1,2771.5,1.0314]
[1740265184741,4.36254,2772.1,2771.5,1.0314]
[1740265185130,5.159514,2772.1,2771.5,1.0314]
[1740265185557,8.766984,2772.1,2771.5,1.0314]
[1740265185866,3.60756,2772.0,2771.5,1.0314]
[1740265198061,7.21514,2772.0,2771.5,1.0314]
[1740265198389,3.60756,2772.0,2771.5,1.0314]
[1740265201702,5.159454,2772.1,2771.5,1.0314]
[1740265201861,0.8185,2772.3,2771.8,3.60776]
[1740265202199,4.42561,2772.3,2771.7,4.43558]
[1740265202498,0.8185,2772.3,2771.7,0.8277]
[1740265202703,3.60772,2771.9,2771.5,1.0827]
[1740265203486,3.60779,2771.8,2771.5,1.0827]
[1740265204009,0.803401,2771.8,2771.4,4.76777083]
[1740265204300,3.60815,2771.5,2771.4,4.76777083]
[1740265205130,3.60848,2771.3,2770.9,0.73069323]
[1740265205340,3.60848,2771.3,2771.0,0.255]
[1740265205621,3.60848,2771.3,2770.8,2.45433715]
[1740265205929,0.8185,2771.4,2770.8,2.70933715]
[1740265206083,3.60878,2771.1,2770.7,7.625]
[1740265206584,3.60885,2771.0,2770.7,7.625]
[1740265207021,3.60849,2771.3,2770.8,1.62663715]
[1740265207387,0.8185,2771.4,2770.8,1.62663715]
[1740265207788,0.8185,2771.4,2770.9,4.43653]
[1740265208009,8.0347,2771.6,2771.0,1.62663715]
[1740265208223,0.8185,2771.6,2771.0,1.62663715]
[1740265208922,0.8185,2771.9,2771.1,0.8277]
[1740265209123,0.8185,2771.9,2771.2,1.62663715]
[1740265209326,4.868795,2771.9,2771.2,1.62663715]
[1740265209498,4.868795,2771.9,2771.3,0.8208]
[1740265210793,1.261105,2771.9,2771.3,4.42913]
[1740265210989,7.2146,2772.2,2771.5,3.60815]
[1740265211216,3.60738,2772.1,2771.5,0.8208]
[1740265211420,3.60738,2772.1,2771.5,1.0758]
[1740265212598,3.60728,2772.2,2771.5,4.68393]
[1740265212943,4.046628,2772.1,2771.5,1.0758]
[1740265215526,4.046628,2772.1,2771.5,4.68393]
[1740265215741,4.046628,2772.1,2771.5,1.0758]
[1740265215945,7.654108,2772.1,2771.5,1.0758]
[1740265217743,4.046628,2772.1,2771.5,4.68392]
[1740265218246,7.654078,2772.1,2771.5,1.0758]
[1740265218430,4.046628,2772.1,2771.5,1.0758]
[1740265219450,7.654118,2772.1,2771.5,1.0758]
[1740265219693,4.046628,2772.1,2771.5,1.0758]
[1740265220163,4.0121628,2772.0,2771.5,1.0758]
[1740265220877,0.4046628,2772.0,2771.5,1.0758]
[1740265225806,0.4046628,2772.0,2771.5,4.68394]
[1740265226017,0.4046628,2772.0,2771.5,1.0758]
[1740265226218,0.4046628,2772.0,2771.5,4.68394]
[1740265226571,3.60741,2772.1,2771.5,4.68394]
[1740265226901,0.8146,2772.6,2771.7,0.7818]
[1740265227107,3.60728,2772.2,2771.7,0.7818]
[1740265228113,7.21461,2772.2,2771.7,0.7818]
[1740265228320,3.60728,2772.2,2771.7,0.7818]
[1740265228519,4.328716,2772.2,2771.7,0.7818]
[1740265231999,3.60738,2772.1,2771.7,0.7818]
[1740265233579,3.60751,2772.0,2771.7,0.7818]
[1740265250840,7.21511,2772.0,2771.7,0.7818]
[1740265250999,3.60751,2772.0,2771.7,0.7818]
[1740265253243,7.21509,2772.0,2771.7,0.7818]
[1740265254317,3.60765,2771.9,2771.7,0.7818]
[1740265261561,1.62663715,2771.8,2771.3,0.73391843]
[1740265261729,1.62663715,2771.8,2770.1,2.07842683]
[1740265261730,0.7639,2771.2,2770.1,2.07842683]
[1740265261917,0.7639,2771.2,2769.7,1.67252124]
[1740265261918,4.37374,2770.2,2769.7,0.04588409]
[1740265262117,3.61036,2769.8,2769.7,4.09e-06]
[1740265262429,9.54638372,2769.8,2769.7,4.09e-06]
[1740265262764,3.70984,2770.2,2769.7,4.09e-06]
[1740265262765,0.7639,2770.6,2769.7,3.61038409]
[1740265262970,0.1,2771.4,2769.9,3.61023]
[1740265262971,0.7639,2771.0,2769.9,3.61023]
[1740265263134,3.60893,2770.9,2770.0,0.255]
[1740265263341,1.62663715,2770.9,2770.0,0.255]
[1740265263542,3.60969,2770.4,2770.0,0.255]
[1740265264055,3.60932,2770.6,2770.0,0.255]
[1740265264224,3.60997,2770.1,2769.7,0.70699743]
[1740265264427,3.61036,2769.8,2769.7,0.70699743]
[1740265264865,3.61024,2769.9,2769.7,0.70699743]
[1740265269580,3.61024,2769.9,2769.7,4.09e-06]
[1740265269764,7.94262,2769.9,2769.7,4.09e-06]
[1740265269965,3.61024,2769.9,2769.7,4.09e-06]
[1740265270361,3.61036,2769.8,2769.7,4.09e-06]
[1740265272761,3.61024,2769.9,2769.7,4.09e-06]
[1740265272967,3.61036,2769.8,2769.7,4.09e-06]
[1740265273144,4.33242,2769.8,2769.7,4.09e-06]
[1740265282280,5.10362,2769.8,2769.7,4.09e-06]
[1740265284361,8.10362,2769.8,2769.7,4.09e-06]
[1740265285957,8.65362,2769.8,2769.7,4.09e-06]
[1740265293181,10.28336321,2769.8,2769.7,4.09e-06]
[1740265294640,8.65362,2769.8,2769.7,4.09e-06]
[1740265308111,7.88242,2769.8,2769.7,4.09e-06]
[1740265308313,3.61036,2769.8,2769.7,4.09e-06]
[1740265308888,6.61036,2769.8,2769.7,4.09e-06]
[1740265310717,3.61036,2769.8,2769.7,4.09e-06]
[1740265310917,3.61013,2770.0,2769.7,4.09e-06]
[1740265311421,3.61036,2769.8,2769.7,4.09e-06]
[1740265311718,3.61013,2770.0,2769.8,0.818]
[1740265311719,3.61034,2769.9,2769.8,0.818]
[1740265312418,3.0,2770.4,2769.8,0.818]
[1740265312621,4.51421309,2770.8,2769.8,0.818]
[1740265312622,3.60999,2770.1,2769.8,0.818]
[1740265314119,3.60991,2770.2,2769.8,0.818]
[1740265314318,3.60992,2770.2,2769.8,0.818]
[1740265314499,3.60992,2770.2,2769.8,0.44285641]
[1740265314702,3.60992,2770.2,2769.9,0.818]
[1740265315390,7.21986,2770.2,2769.9,0.818]
[1740265315602,3.60992,2770.2,2769.9,0.818]
[1740265316227,3.60998,2770.1,2769.9,0.818]
[1740265316519,7.21984,2770.2,2769.9,0.818]
[1740265316727,3.60992,2770.2,2769.9,0.818]
[1740265318106,3.61,2770.1,2769.9,0.818]
[1740265318599,3.60992,2770.2,2769.9,0.818]
[1740265318930,3.61005,2770.1,2769.9,0.818]
[1740265319630,7.22012,2770.1,2769.9,0.818]
[1740265319825,3.61005,2770.1,2769.9,0.818]
[1740265320308,3.6101,2770.0,2769.9,0.818]
[1740265323333,3.61005,2770.1,2769.9,0.818]
[1740265326904,3.60978,2770.3,2769.9,0.818]
[1740265327529,3.61004,2770.1,2769.9,0.818]
[1740265327930,3.60988,2770.2,2769.9,0.818]
[1740265328325,3.60999,2770.1,2769.9,0.818]
[1740265328532,4.15889,2771.0,2769.9,0.818]
[1740265328533,3.60932,2770.7,2769.9,0.8263]
[1740265328719,3.60939,2770.6,2770.2,0.8263]
[1740265328920,3.60916,2770.8,2770.3,1.88457917]
[1740265329116,3.60936,2770.6,2770.3,1.88457917]
[1740265329344,3.60936,2770.6,2770.4,0.7575]
[1740265329943,3.60945,2770.5,2770.4,0.7575]
[1740265332668,3.60945,2770.5,2769.7,4.09e-06]
[1740265332669,3.60973,2770.3,2769.7,4.09e-06]
[1740265332948,3.61036,2769.8,2769.7,4.09e-06]
[1740265334112,4.37897,2770.8,2770.0,3.60999]
[1740265334336,3.60959,2770.4,2770.2,1.62857917]
[1740265334507,3.61023,2769.9,2769.8,0.7575]
[1740265334960,3.61036,2769.8,2769.7,0.25700409]
[1740265335124,3.61036,2769.8,2769.7,4.09e-06]
[1740265337650,0.7699,2770.5,2769.8,3.61036]
[1740265337849,3.60935,2770.6,2770.1,0.7575]
[1740265338052,3.60946,2770.5,2770.1,1.0155]
[1740265339528,0.7699,2770.6,2769.7,4.09e-06]
[1740265339732,3.6103,2769.9,2769.7,4.09e-06]
[1740265340263,0.7699,2771.0,2769.8,0.7575]
[1740265340419,3.60972,2770.3,2769.9,3.35937413]
[1740265340623,3.60893,2770.9,2769.8,0.7575]
[1740265340624,0.55,2770.9,2769.8,0.7575]
[1740265340853,3.60906,2770.8,2769.9,3.61014]
[1740265341052,3.60965,2770.4,2769.9,3.61014]
[1740265341437,3.6098,2770.3,2769.8,4.36786]
[1740265345556,3.6098,2770.3,2769.8,7.97814]
[1740265345871,3.6098,2770.3,2769.8,4.36778]
[1740265346052,3.6098,2770.3,2769.9,0.77271582]
[1740265350262,3.60929,2770.7,2770.1,3.60989]
[1740265350466,0.8124,2771.3,2770.4,3.60958]
[1740265350672,3.60965,2770.4,2770.3,0.259]
[1740265351878,3.60974,2770.3,2769.9,6.4493]
[1740265352052,3.60974,2770.3,2769.9,8.09119382]
[1740265352457,7.21953,2770.3,2769.9,8.09119382]
[1740265354490,3.60986,2770.2,2769.9,8.09119382]
[1740265358463,3.60974,2770.3,2769.9,8.09119382]
[1740265358673,3.60986,2770.2,2769.9,8.09119382]
[1740265359788,3.60986,2770.2,2770.0,1.5060928]
[1740265359993,3.60972,2770.3,2770.0,1.5060928]
[1740265363195,3.60972,2770.3,2770.0,1.7640928]
[1740265366702,3.60972,2770.3,2770.0,0.258]
[1740265367400,3.6094,2770.6,2770.0,0.258]
[1740265367600,3.60927,2770.7,2770.2,4.40424]
[1740265367901,3.6091,2770.8,2770.4,3.60955]
[1740265368100,0.7948,2771.2,2770.2,0.7944]
[1740265368304,4.40273,2771.7,2770.8,0.7944]
[1740265368470,3.6088,2771.0,2770.8,5.648]
[1740265368669,7.2177,2771.0,2770.8,0.258]
[1740265368995,3.60893,2770.9,2770.8,0.258]
[1740265369400,3.60932,2770.6,2770.5,5.39]
[1740265369806,3.60869,2771.1,2770.5,5.9549]
[1740265369807,0.7665,2771.1,2770.5,5.9549]
[1740265369984,4.37487,2771.4,2770.6,0.7752]
[1740265370304,3.60903,2770.9,2770.6,0.7752]
[1740265371203,3.60908,2770.8,2770.6,0.7752]
[1740265371391,3.60908,2770.8,2770.6,1.78414741]
[1740265371589,3.60893,2771.0,2770.6,1.78414741]
[1740265371803,0.7665,2771.4,2770.6,1.78414741]
[1740265372107,3.60862,2771.2,2770.7,3.35937413]
[1740265372991,3.60854,2771.2,2770.7,3.35937413]
[1740265373189,3.60854,2771.2,2770.8,0.87528415]
[1740265373372,3.60864,2771.2,2770.8,0.87528415]
[1740265373966,3.60869,2771.1,2770.8,0.87528415]
[1740265374802,0.7665,2771.4,2770.8,4.48433415]
[1740265374971,3.60856,2771.2,2770.8,0.87528415]
[1740265375173,3.60856,2771.2,2770.9,0.42346583]
[1740265380604,3.60853,2771.3,2770.9,0.68146583]
[1740265380796,3.60863,2771.2,2770.9,0.68146583]
[1740265382606,3.6085,2771.3,2770.9,0.68146583]
[1740265383133,3.60841,2771.3,2770.9,0.68146583]
[1740265383598,3.6085,2771.3,2770.9,0.68146583]
[1740265384420,4.37486,2771.4,2770.9,0.68146583]
[1740265384623,3.60856,2771.2,2770.9,0.68146583]
[1740265385923,3.60841,2771.3,2770.9,0.68146583]
[1740265386427,3.60841,2771.3,2771.0,0.805]
[1740265388010,3.60833,2771.4,2771.0,1.35973142]
[1740265388213,3.60844,2771.3,2771.0,1.35973142]
[1740265388382,3.60893,2770.9,2770.5,5.39]
[1740265388589,3.60921,2770.7,2770.5,5.648]
[1740265389321,3.60906,2770.8,2770.5,5.648]
[1740265391019,0.7626,2771.4,2770.8,3.60906]
[1740265391200,4.37101,2771.4,2770.8,3.60906]
[1740265391395,4.37101,2771.4,2770.8,4.74639641]
[1740265391600,3.60841,2771.4,2770.9,0.7957]
[1740265391823,3.60836,2771.4,2770.9,0.7957]
[1740265395295,3.6085,2771.3,2770.9,0.7957]
[1740265397430,3.6085,2771.3,2770.9,6.1857]
[1740265397628,3.6085,2771.3,2770.9,7.61484105]
[1740265399334,3.6085,2771.3,2771.0,0.258]
[1740265400615,3.60815,2771.5,2771.0,0.258]
[1740265400824,3.60848,2771.3,2771.0,0.258]
[1740265402046,3.60855,2771.2,2771.0,0.258]
[1740265402245,3.60855,2771.2,2770.9,5.39]
[1740265402412,3.6088,2771.0,2770.9,5.39]
[1740265403413,3.60906,2770.8,2770.7,0.258]
[1740265404716,3.60906,2770.8,2770.4,1.55012627]
[1740265404916,3.60906,2770.8,2770.4,1.80812627]
[1740265405601,3.60919,2770.7,2770.4,1.80812627]
[1740265405801,3.60906,2770.8,2770.1,10.73137413]
[1740265405802,3.60982,2770.3,2770.1,10.73137413]
[1740265406035,3.60982,2770.3,2770.2,0.258]
[1740265411855,3.60946,2770.5,2770.2,0.258]
[1740265412060,3.60959,2770.4,2770.2,0.258]
[1740265412371,3.60959,2770.4,2770.1,16.37937413]
[1740265412567,3.60959,2770.4,2770.1,18.46028854]
[1740265412772,3.60976,2770.3,2770.1,18.46028854]
[1740265413369,3.60959,2770.4,2770.1,18.46028854]
[1740265414835,3.60959,2770.4,2770.1,11.08828854]
[1740265415039,3.60959,2770.4,2770.1,9.00737413]
[1740265416369,3.60952,2770.5,2770.1,9.00737413]
[1740265419660,3.60964,2770.4,2770.1,9.00737413]
[1740265425383,3.60946,2770.5,2770.1,9.00737413]
[1740265426644,3.6096,2770.4,2770.1,9.00737413]
[1740265427048,4.4396,2770.4,2770.1,9.00737413]
[1740265429301,4.4396,2770.4,2770.1,8.74937413]
[1740265429778,3.6096,2770.4,2770.1,8.74937413]
[1740265430010,3.6096,2770.4,2770.1,9.73197154]
[1740265434714,3.6096,2770.4,2770.3,1.62801238]
[1740265440886,3.60952,2770.5,2770.3,1.62801238]
[1740265441288,3.60942,2770.6,2770.3,1.62801238]
[1740265441487,3.60958,2770.4,2770.3,1.62801238]
[1740265444898,3.60958,2770.4,2769.7,4.09e-06]
[1740265444899,3.61023,2769.9,2769.7,4.09e-06]
[1740265445098,4.36753,2769.9,2769.7,4.09e-06]
[1740265445425,3.61023,2769.9,2769.7,1.62801647]
[1740265446126,3.60935,2770.6,2769.9,3.61013]
[1740265446325,3.60935,2770.6,2770.3,1.62801238]
[1740265446494,7.94063,2770.6,2770.3,1.62801238]
[1740265446698,7.94063,2770.6,2770.2,0.8051]
[1740265446893,3.7573,2771.1,2770.2,0.8051]
[1740265447227,3.60858,2771.2,2770.7,3.35767815]
[1740265447392,3.60868,2771.1,2770.7,3.35767815]
[1740265447790,4.36554,2771.5,2770.8,0.8051]
[1740265447994,3.60836,2771.4,2770.8,0.8051]
[1740265448329,3.60841,2771.3,2770.8,0.8051]
[1740265448530,3.60841,2771.3,2770.8,1.38585178]
[1740265449541,3.60803,2771.6,2770.9,0.7985]
[1740265449746,3.60829,2771.4,2770.9,0.7985]
[1740265449924,3.60849,2771.3,2770.9,0.7985]
[1740265452655,4.37739,2771.4,2770.9,0.7985]
[1740265452956,7.98578,2771.4,2770.9,1.64600803]
[1740265453757,3.60845,2771.3,2770.9,1.64600803]
[1740265456273,3.60845,2771.3,2770.9,0.7985]
[1740265461961,3.60856,2771.2,2770.9,0.7985]
[1740265462588,3.60873,2771.1,2770.7,3.35767815]
[1740265462867,3.60921,2770.7,2770.5,5.39]
[1740265463048,3.60921,2770.7,2770.4,0.257]
[1740265463236,3.60921,2770.7,2770.4,1.97442782]
[1740265463636,4.35979,2771.0,2770.4,0.257]
[1740265463836,3.60945,2770.6,2770.4,0.257]
[1740265464270,3.60945,2770.6,2770.3,4.15427815]
[1740265464439,3.60958,2770.4,2770.3,3.61467815]
[1740265464773,7.21888,2770.6,2770.3,3.61467815]
[1740265464979,3.60943,2770.6,2770.3,3.61467815]
[1740265465377,3.60946,2770.5,2770.3,3.61467815]
[1740265465675,3.60957,2770.5,2770.3,3.61467815]
[1740265466879,3.60945,2770.5,2770.2,7.373]
[1740265467054,3.61013,2770.0,2769.6,0.825]
[1740265467379,7.22034,2770.0,2769.6,1.082]
[1740265467599,3.61013,2770.0,2769.6,1.082]
[1740265467791,3.61036,2769.8,2769.6,0.257]
[1740265468871,3.61036,2769.8,2769.5,0.257]
[1740265471292,4.43826,2769.8,2769.4,5.647]
[1740265471483,5.24311,2769.8,2769.4,5.647]
[1740265471678,5.24311,2769.8,2769.4,0.257]
[1740265472274,5.24311,2769.8,2769.1,4.13947815]
[1740265472612,5.24311,2769.8,2769.2,0.257]
[1740265473409,5.24311,2769.8,2769.1,3.36267815]
[1740265473599,5.24311,2769.8,2769.1,0.262]
[1740265476238,5.24311,2769.8,2769.1,0.005]
[1740265476239,8.24311,2769.8,2769.1,0.005]
[1740265476543,8.79311,2769.8,2769.1,0.005]
[1740265479794,9.06393812,2769.8,2769.1,0.005]
[1740265480502,14.30393812,2769.8,2769.1,0.005]
[1740265489257,18.10693812,2769.8,2769.1,0.005]
[1740265489440,14.30393812,2769.8,2769.1,0.005]
[1740265494629,7.96335,2769.2,2769.1,4.09e-06]
[1740265494963,14.69655582,2769.2,2769.1,4.09e-06]
[1740265504068,14.69655582,2769.2,2768.3,0.7783]
[1740265504069,11.08540582,2769.2,2768.3,0.7783]
[1740265504269,3.61336,2767.5,2767.4,0.7783]
[1740265505260,3.61325,2767.6,2767.4,0.7783]
[1740265505460,3.0,2768.1,2767.4,0.7783]
[1740265505461,3.61292,2767.9,2767.5,0.7783]
[1740265505661,3.61304,2767.8,2767.5,0.7783]
[1740265506288,3.61311,2767.7,2767.5,0.7783]
[1740265506797,3.61323,2767.6,2767.5,0.7783]
[1740265507299,3.61336,2767.5,2766.8,5.39]
[1740265507597,3.61336,2767.5,2766.0,0.7783]
[1740265507598,1.101617,2767.5,2767.0,0.7783]
[1740265507794,3.61398,2767.1,2767.0,0.7783]
[1740265508106,3.61329,2767.6,2767.0,0.7783]